[Event "German Bundesliga 2023-24"]
[Site "Germany"]
[Date "2024.02.04"]
[Round "8.14"]
[White "Adams, Michael"]
[Black "Hampel, Felix"]
[Result "1-0"]
[ECO "B47"]
[WhiteElo "2674"]
[BlackElo "2298"]
[Annotator "TA"]
[PlyCount "101"]
[EventDate "2023.10.20"]
[EventType "team-tourn"]
[EventCountry "GER"]
[SourceTitle "playchess.com"]
[Source "ChessBase"]
[SourceQuality "1"]
[TimeControl "40/6000+30:3000+30"]

{[%evp 9,101,20,48,13,16,24,15,19,20,6,7,12,16,0,0,0,0,0,0,0,0,12,45,23,24,23,56,20,117,111,105,91,146,152,134,135,144,108,139,144,167,175,155,139,141,147,146,135,149,156,160,156,170,180,161,131,157,154,190,183,194,192,205,206,212,199,230,228,232,237,223,224,366,343,340,338,311,295,307,267,364,355,366,354,347,354,354,347,1030,1012,29994,29995,29995,29996]} 1. e4 {[%emt 0:00:04]} c5 {[%emt 0:00:07]} 2. Nf3 {[%emt 0:00:07][%cal Bg1f3,Bf3d4,Bd4b5][%mdl 32]} e6 {[%emt 0:00:06]} 3. d4 {[%emt 0:00:06]} cxd4 {[%emt 0:00:07]} 4. Nxd4 {[%emt 0:00:05]} Nc6 {[%emt 0:00:06]} 5. Nc3 {[%emt 0:00:09]} Qc7 {[%emt 0:00:07]} 6. Qd3 {[%emt 0:00:11]} Nf6 {[%emt 0:00:15]} 7. Ndb5 {[%emt 0:00:15]} Qb8 {[%emt 0:00:20]} 8. Qg3 {[%emt 0:00:11] The position is equal.} d6 $1 {[%emt 0:00:13] [#] ...a6 is the strong threat.} 9. Be3 {[%emt 0:00:15] And now 0-0-0 would win.} (9. Bf4 Nh5 10. Qg5 Nxf4 11. Qxf4 a6 $17) 9... a6 {[%emt 0:00:22]} 10. Nd4 {[%emt 0:00:09]} h5 {[%emt 0:00:23]} 11. f3 {[%emt 0:03:24]} Bd7 {[%emt 0:00:38]} 12. O-O-O {[%emt 0:02:00]} b5 {[%emt 0:00:51]} 13. Nxc6 {[%emt 0:04:08]} Bxc6 {[%emt 0:03:53]} 14. Kb1 {[%emt 0:08:43]} b4 {[%emt 0:08:00]} 15. Ne2 {[%emt 0:00:08][%cal Bc3e2,Be2c1,Bc1d3][%mdl 32]} e5 {[%emt 0:01:37] Inhibits Nd4.} 16. Nc1 {[%emt 0:07:40]} a5 {[%emt 0:05:42]} 17. Bc4 {[%emt 0:08:46]} a4 {[%emt 0:24:35]} 18. Qe1 {[%emt 0:08:53]} Qb7 {[%emt 0:02:53]} (18... Be7 $11 {keeps the balance.}) 19. Nd3 $16 {[%emt 0:08:09] White is more active.} Rb8 {[%emt 0:06:33]} 20. Bd2 $36 {[%emt 0:01:57][%mdl 2048] White is in control.} Bb5 {[%emt 0:07:19]} (20... Bd7 $142) 21. Bxb5+ {[%emt 0:03:54]} Qxb5 {[%emt 0:00:16]} 22. Bxb4 {[%emt 0:04:15]} Be7 {[%emt 0:01:26]} 23. Rc1 {[%emt 0:07:10]} Qc4 {[%emt 0:03:58]} 24. a3 {[%emt 0:08:07]} Rc8 {[%emt 0:04:27]} 25. Qd2 {[%emt 0:02:05]} Qe6 {[%emt 0:02:18]} 26. c3 {[%emt 0:04:49]} O-O {[%emt 0:01:34]} 27. Qc2 {[%emt 0:00:07]} Ra8 {[%emt 0:01:14]} 28. Rhe1 {[%emt 0:03:37]} Rfc8 {[%emt 0:04:09]} 29. Rcd1 {[%emt 0:00:39]} Bf8 {[%emt 0:03:05]} 30. Nf2 {[%emt 0:02:26]} d5 {[%emt 0:06:10]} 31. Bxf8 {[%emt 0:06:51]} Kxf8 {[%emt 0:00:06]} 32. Qd2 {[%emt 0:01:15]} dxe4 {[%emt 0:07:12]} 33. Nxe4 {[%emt 0:00:08]} Ra6 {[%emt 0:00:28]} 34. Nxf6 {[%emt 0:02:35]} Qxf6 {[%emt 0:00:20]} 35. Re4 {[%emt 0:00:59][%cal Be1e4,Be4b4,Bb4b7][%mdl 32]} Qg6 {[%emt 0:04:50]} 36. Ka1 {[%emt 0:01:41]} f6 {[%emt 0:01:57]} 37. Rb4 {[%emt 0:03:20]} Rca8 {[%emt 0:03:54]} 38. Rb7 {[%emt 0:01:21] Strongly threatening Qd5.} Kg8 {[%emt 0:00:27]} 39. Qf2 {[%emt 0:01:42]} Re6 {[%emt 0:01:10][%cal Ba6e6,Be6e4,Be4g4][%mdl 32]} 40. Rdd7 {[%emt 0:01:10]} e4 {[%emt 0:00:52]} (40... Ree8 $142 41. Rxg7+ Qxg7 42. Rxg7+ Kxg7) 41. fxe4 {[%emt 0:56:05]} Rxe4 {[%emt 0:51:24]} 42. Ka2 {[%emt 0:00:00]} Rg4 {[%emt 0:00:00]} 43. Qf3 {[%emt 0:00:00]} Ra5 {[%emt 0:00:00]} 44. g3 {[%emt 0:00:00]} Re5 {[%emt 0:00:00]} 45. Rb8+ {[%emt 0:00:00]} Re8 {[%emt 0:00:00]} 46. Qd5+ {[%emt 0:00:00]} Kh7 {[%emt 0:00:00]} 47. Rxe8 {[%emt 0:00:00]} Qxe8 {[%emt 0:00:00]} 48. c4 {[%emt 0:00:00] Rd8 would now be deadly.} Rxc4 $2 {[%emt 0:00:00] [#]} (48... Re4 49. Rd8 Qg6) 49. Rd8 $1 $18 {[%emt 0:00:00]} ({Stronger than} 49. Rxg7+ Kxg7 50. Qxc4 Qd7 $14) 49... Qe2 {[%emt 0:00:00]} 50. Qf5+ {[%emt 0:00:00]} g6 {[%emt 0:00:00]} 51. Qxf6 {[%emt 0:00:00] Weighted Error Value: White=0.08 (flawless) /Black=0.34.  Mistake:       	---       	Black=4      Inaccurate:     	White=1     	Black=4      OK:         	White=24    	Black=13     Best:        	White=2     	Black=4      Strong:       	White=1     	Black=1} 1-0

[Event "German Bundesliga 2023-24"]
[Site "Germany"]
[Date "2024.02.04"]
[Round "8.14"]
[White "Meshkovs, Nikita"]
[Black "Saltaev, Mihail"]
[Result "1-0"]
[ECO "E06"]
[WhiteElo "2526"]
[BlackElo "2441"]
[Annotator "RC"]
[PlyCount "87"]
[EventDate "2023.10.20"]
[EventType "team-tourn"]
[EventCountry "GER"]
[SourceTitle "playchess.com"]
[Source "ChessBase"]
[SourceQuality "1"]
[TimeControl "40/6000+30:3000+30"]

1. d4 {[%emt 0:00:48]} d5 {[%emt 0:00:28]} 2. Nf3 {[%emt 0:00:27]} Nf6 {[%emt 0:00:23]} 3. c4 {[%emt 0:00:06]} e6 {[%emt 0:00:07]} 4. g3 {[%emt 0:00:14]} Be7 {[%emt 0:01:05]} 5. Bg2 {[%emt 0:00:10]} O-O {[%emt 0:00:15]} 6. Nc3 {[%emt 0:00:06]} dxc4 {[%emt 0:07:43]} 7. Ne5 {[%emt 0:00:06]} c5 {[%emt 0:01:52]} 8. dxc5 {[%emt 0:00:07]} Qxd1+ {[%emt 0:00:06]} 9. Nxd1 {[%emt 0:00:05]} Bxc5 {[%emt 0:00:07]} 10. Ne3 {[%emt 0:00:22]} Nbd7 {[%emt 0:06:24]} 11. N5xc4 {[%emt 0:04:57]} Rb8 {[%emt 0:05:55]} 12. Na5 {[%emt 0:08:45]} Ne5 {[%emt 0:16:26]} 13. O-O {[%emt 0:13:08]} b6 {[%emt 0:03:28]} 14. Nb3 {[%emt 0:00:09]} Bxe3 {[%emt 0:16:28]} 15. Bxe3 {[%emt 0:00:14]} Nc4 {[%emt 0:00:04]} 16. Bg5 {[%emt 0:10:20]} h6 {[%emt 0:01:20]} 17. Bxf6 {[%emt 0:03:37]} gxf6 {[%emt 0:00:06]} 18. Rfc1 {[%emt 0:02:16]} Nxb2 {[%emt 0:17:12]} 19. Rab1 {[%emt 0:02:42]} Na4 {[%emt 0:00:54]} 20. Rc7 {[%emt 0:01:02]} Rd8 {[%emt 0:02:25]} 21. Rbc1 {[%emt 0:02:51]} a6 {[%emt 0:03:22]} 22. R1c4 {[%emt 0:17:03]} b5 {[%emt 0:01:26]} 23. Rd4 {[%emt 0:00:19]} Rf8 {[%emt 0:12:13]} 24. Na5 {[%emt 0:16:15]} e5 {[%emt 0:00:57]} 25. Rd6 {[%emt 0:04:20]} Be6 {[%emt 0:00:07]} 26. Nc6 {[%emt 0:03:13]} Rb6 {[%emt 0:00:23]} 27. Bd5 {[%emt 0:01:58]} Bxd5 {[%emt 0:04:45]} 28. Rxd5 {[%emt 0:00:34]} Kg7 {[%emt 0:00:31]} 29. Nd8 {[%emt 0:00:59]} Kg6 {[%emt 0:01:03]} 30. g4 {[%emt 0:03:42]} f5 {[%emt 0:03:42]} 31. gxf5+ {[%emt 0:03:00]} Kxf5 {[%emt 0:00:10]} 32. Nxf7 {[%emt 0:02:06]} Rg6+ {[%emt 0:01:48]} 33. Kf1 {[%emt 0:00:01]} Nb6 {[%emt 0:00:12]} 34. Rxe5+ {[%emt 0:01:37]} Kf6 {[%emt 0:01:50]} 35. Re3 {[%emt 0:03:15]} Nd5 {[%emt 0:00:55]} 36. Rf3+ {[%emt 0:00:15]} Kg7 {[%emt 0:00:07]} 37. Ra7 {[%emt 0:01:04]} Kg8 {[%emt 0:00:19]} 38. Rg3 {[%emt 0:04:34]} Rxg3 {[%emt 0:01:20]} 39. Nxh6+ {[%emt 0:00:02]} Kh8 {[%emt 0:00:05]} 40. hxg3 {[%emt 0:00:06]} Rf6 {[%emt 0:00:14]} 41. Ng4 {[%emt 0:50:15]} Rc6 {[%emt 0:51:43]} 42. e4 {[%emt 0:00:00]} Nc7 {[%emt 0:00:00]} 43. Ne3 {[%emt 0:00:00]} b4 {[%emt 0:00:00]} 44. Nd5 {[%emt 0:00:00]} 1-0

[Event "German Bundesliga 2023-24"]
[Site "Germany"]
[Date "2024.02.04"]
[Round "8.14"]
[White "Cyborowski, Lukasz"]
[Black "Pruijssers, Roeland"]
[Result "1/2-1/2"]
[ECO "D63"]
[WhiteElo "2479"]
[BlackElo "2539"]
[Annotator "RC"]
[PlyCount "45"]
[EventDate "2023.10.20"]
[EventType "team-tourn"]
[EventCountry "GER"]
[SourceTitle "playchess.com"]
[Source "ChessBase"]
[SourceQuality "1"]
[TimeControl "40/6000+30:3000+30"]

1. d4 {[%emt 0:00:05]} d5 {[%emt 0:00:25]} 2. c4 {[%emt 0:00:33]} e6 {[%emt 0:00:09]} 3. Nc3 {[%emt 0:00:24]} Nf6 {[%emt 0:00:16]} 4. Bg5 {[%emt 0:01:13]} Be7 {[%emt 0:00:24]} 5. e3 {[%emt 0:02:48]} h6 {[%emt 0:06:40]} 6. Bh4 {[%emt 0:00:48]} Nbd7 {[%emt 0:03:28]} 7. Nf3 {[%emt 0:03:00]} O-O {[%emt 0:00:56]} 8. Rc1 {[%emt 0:01:27]} c5 {[%emt 0:05:35]} 9. cxd5 {[%emt 0:12:04]} Nxd5 {[%emt 0:01:28]} 10. Bxe7 {[%emt 0:00:27]} Nxe7 {[%emt 0:00:07]} 11. Bb5 {[%emt 0:04:00]} cxd4 {[%emt 0:02:54]} 12. Qxd4 {[%emt 0:01:34]} Nf6 {[%emt 0:04:10]} 13. O-O {[%emt 0:02:44]} Qxd4 {[%emt 0:03:23]} 14. Nxd4 {[%emt 0:00:43]} Rd8 {[%emt 0:00:38]} 15. Rfd1 {[%emt 0:03:00]} Bd7 {[%emt 0:02:34]} 16. Kf1 {[%emt 0:03:09]} Rac8 {[%emt 0:06:39]} 17. Bxd7 {[%emt 0:02:52]} Rxd7 {[%emt 0:00:08]} 18. Ke2 {[%emt 0:05:15]} Kf8 {[%emt 0:02:04]} 19. Ncb5 {[%emt 0:01:57]} a6 {[%emt 0:03:55]} 20. Rxc8+ {[%emt 0:02:06]} Nxc8 {[%emt 0:00:07]} 21. Rc1 {[%emt 0:03:14]} Nb6 {[%emt 0:00:25]} 22. Nc3 {[%emt 0:04:02]} Ke7 {[%emt 0:00:59]} 23. Rc2 {[%emt 0:02:05]} 1/2-1/2

[Event "German Bundesliga 2023-24"]
[Site "Germany"]
[Date "2024.02.04"]
[Round "8.15"]
[White "Wagner, Dennis"]
[Black "Bischoff, Klaus"]
[Result "1-0"]
[ECO "A40"]
[WhiteElo "2599"]
[BlackElo "2455"]
[Annotator "ChessBase"]
[PlyCount "51"]
[EventDate "2023.10.20"]
[EventType "team-tourn"]
[EventCountry "GER"]
[SourceTitle "playchess.com"]
[Source "ChessBase"]
[SourceQuality "1"]
[TimeControl "40/6000+30:3000+30"]

1. d4 {[%emt 0:00:05]} e6 {[%emt 0:00:55]} 2. c4 {[%emt 0:00:05]} Bb4+ {[%emt 0:01:46]} 3. Nd2 {[%emt 0:00:12]} Nf6 {[%emt 0:02:32]} 4. a3 {[%emt 0:02:57]} Be7 {[%emt 0:00:49]} 5. e4 {[%emt 0:02:39]} d5 {[%emt 0:03:20]} 6. e5 {[%emt 0:03:14]} Nfd7 {[%emt 0:00:20]} 7. Bd3 {[%emt 0:07:26]} dxc4 {[%emt 0:05:13]} 8. Nxc4 {[%emt 0:00:30]} Nb6 {[%emt 0:01:04]} 9. Qg4 {[%emt 0:13:36]} g6 {[%emt 0:02:01]} 10. Nf3 {[%emt 0:10:49]} Nxc4 {[%emt 0:10:14]} 11. Bxc4 {[%emt 0:00:04]} Nd7 {[%emt 0:00:20]} 12. Bh6 {[%emt 0:04:35]} Nb6 {[%emt 0:01:12]} 13. Ba2 {[%emt 0:00:12]} Bd7 {[%emt 0:05:19]} 14. Ng5 {[%emt 0:01:16]} Nd5 {[%emt 0:03:20]} 15. h4 {[%emt 0:10:37]} Bb5 {[%emt 0:14:14]} 16. Qf3 {[%emt 0:07:29]} Bxg5 {[%emt 0:02:55]} 17. Bxg5 {[%emt 0:00:07]} Qd7 {[%emt 0:00:06]} 18. h5 {[%emt 0:01:40]} Bc6 {[%emt 0:02:03]} 19. Rc1 {[%emt 0:20:26]} Ne7 {[%emt 0:14:49]} 20. Qf6 {[%emt 0:00:30]} Rg8 {[%emt 0:01:40]} 21. hxg6 {[%emt 0:04:06]} Nxg6 {[%emt 0:03:02]} 22. Rxh7 {[%emt 0:01:10]} Qe7 {[%emt 0:00:13]} 23. d5 {[%emt 0:10:43]} Qxf6 {[%emt 0:01:56]} 24. Bxf6 {[%emt 0:00:04]} exd5 {[%emt 0:00:47]} 25. g3 {[%emt 0:03:10]} Nf8 {[%emt 0:01:17]} 26. Rh5 {[%emt 0:00:25]} 1-0

[Event "German Bundesliga 2023-24"]
[Site "Germany"]
[Date "2024.02.04"]
[Round "8.15"]
[White "Buckels, Valentin"]
[Black "Thybo, Jesper Sondergaard"]
[Result "1/2-1/2"]
[ECO "D02"]
[WhiteElo "2429"]
[BlackElo "2522"]
[Annotator "RC"]
[PlyCount "43"]
[EventDate "2023.10.20"]
[EventType "team-tourn"]
[EventCountry "GER"]
[SourceTitle "playchess.com"]
[Source "ChessBase"]
[SourceQuality "1"]
[TimeControl "40/6000+30:3000+30"]

1. d4 {[%emt 0:00:03]} Nf6 {[%emt 0:10:37]} 2. Nf3 {[%emt 0:00:29]} d5 {[%emt 0:00:14]} 3. Bf4 {[%emt 0:00:36]} c5 {[%emt 0:00:19]} 4. e3 {[%emt 0:00:16]} Nc6 {[%emt 0:00:27]} 5. Be2 {[%emt 0:00:40]} Bg4 {[%emt 0:03:36]} 6. Nbd2 {[%emt 0:00:54]} e6 {[%emt 0:00:42]} 7. O-O {[%emt 0:00:48]} Be7 {[%emt 0:03:45]} 8. dxc5 {[%emt 0:08:22]} Bxc5 {[%emt 0:01:26]} 9. c4 {[%emt 0:01:09]} O-O {[%emt 0:01:11]} 10. Rc1 {[%emt 0:08:05]} Be7 {[%emt 0:01:31]} 11. Ne5 {[%emt 0:26:56]} Bxe2 {[%emt 0:02:54]} 12. Qxe2 {[%emt 0:00:06]} Bd6 {[%emt 0:01:30]} 13. Ndf3 {[%emt 0:05:51]} Nxe5 {[%emt 0:01:05]} 14. Nxe5 {[%emt 0:03:56]} Qe7 {[%emt 0:02:29]} 15. cxd5 {[%emt 0:05:49]} Nxd5 {[%emt 0:00:39]} 16. Bg3 {[%emt 0:00:06]} Rac8 {[%emt 0:00:48]} 17. Qd2 {[%emt 0:11:13]} Rfd8 {[%emt 0:03:24]} 18. Rxc8 {[%emt 0:02:35]} Rxc8 {[%emt 0:02:54]} 19. Rc1 {[%emt 0:00:25]} Rxc1+ {[%emt 0:00:43]} 20. Qxc1 {[%emt 0:00:06]} Qc7 {[%emt 0:00:28]} 21. Qxc7 {[%emt 0:00:23]} Bxc7 {[%emt 0:00:19]} 22. Kf1 {[%emt 0:00:38]} 1/2-1/2

[Event "German Bundesliga 2023-24"]
[Site "Germany"]
[Date "2024.02.04"]
[Round "8.15"]
[White "Reuker, Jari"]
[Black "Jaracz, Pawel"]
[Result "1-0"]
[ECO "D11"]
[WhiteElo "2403"]
[BlackElo "2472"]
[Annotator "RC"]
[PlyCount "103"]
[EventDate "2023.10.20"]
[EventType "team-tourn"]
[EventCountry "GER"]
[SourceTitle "playchess.com"]
[Source "ChessBase"]
[SourceQuality "1"]
[TimeControl "40/6000+30:3000+30"]

1. d4 {[%emt 0:00:03]} d5 {[%emt 0:00:19]} 2. c4 {[%emt 0:00:11]} c6 {[%emt 0:00:51]} 3. Nf3 {[%emt 0:00:16]} Nf6 {[%emt 0:00:09]} 4. g3 {[%emt 0:00:12]} Bg4 {[%emt 0:05:07]} 5. Ne5 {[%emt 0:00:18]} Bf5 {[%emt 0:01:25]} 6. Qb3 {[%emt 0:00:14]} Bc8 {[%emt 0:04:49]} 7. Bg2 {[%emt 0:09:44]} dxc4 {[%emt 0:07:30]} 8. Qxc4 {[%emt 0:03:15]} Be6 {[%emt 0:00:23]} 9. Qd3 {[%emt 0:01:56]} Nbd7 {[%emt 0:00:17]} 10. Nf3 {[%emt 0:02:09]} Nb6 {[%emt 0:11:00]} 11. Nc3 {[%emt 0:04:02]} Bc4 {[%emt 0:03:27]} 12. Qc2 {[%emt 0:03:04]} e6 {[%emt 0:00:20]} 13. O-O {[%emt 0:03:11]} Be7 {[%emt 0:00:22]} 14. Rd1 {[%emt 0:04:37]} O-O {[%emt 0:00:27]} 15. b3 {[%emt 0:01:55]} Ba6 {[%emt 0:00:10]} 16. e4 {[%emt 0:00:54]} Rc8 {[%emt 0:06:29]} 17. Be3 {[%emt 0:11:25]} Nbd7 {[%emt 0:00:43]} 18. h3 {[%emt 0:09:38]} Bb4 {[%emt 0:09:22]} 19. Na4 {[%emt 0:10:00]} b6 {[%emt 0:05:01]} 20. a3 {[%emt 0:00:55]} Be7 {[%emt 0:00:11]} 21. b4 {[%emt 0:00:55]} Bb7 {[%emt 0:09:06]} 22. Nc3 {[%emt 0:00:29]} h6 {[%emt 0:06:22]} 23. Rac1 {[%emt 0:02:10]} Ne8 {[%emt 0:07:05]} 24. g4 {[%emt 0:05:41]} Nd6 {[%emt 0:03:43]} 25. Qb3 {[%emt 0:02:10]} Ne8 {[%emt 0:03:54]} 26. Ne5 {[%emt 0:05:59]} Nef6 {[%emt 0:00:47]} 27. f4 {[%emt 0:02:11]} Nxe5 {[%emt 0:03:25]} 28. dxe5 {[%emt 0:00:13]} Nd7 {[%emt 0:00:04]} 29. Rd2 {[%emt 0:05:04]} Rc7 {[%emt 0:01:05]} 30. Qd1 {[%emt 0:03:14]} Ba6 {[%emt 0:01:49]} 31. Qf3 {[%emt 0:04:25]} c5 {[%emt 0:03:51]} 32. b5 {[%emt 0:02:21]} Bb7 {[%emt 0:00:04]} 33. a4 {[%emt 0:03:18]} Qa8 {[%emt 0:04:23]} 34. Qg3 {[%emt 0:01:41]} c4 {[%emt 0:00:23]} 35. f5 {[%emt 0:00:36]} Bc5 {[%emt 0:01:17]} 36. Re1 {[%emt 0:02:36]} Rd8 {[%emt 0:01:48]} 37. g5 {[%emt 0:00:59]} hxg5 {[%emt 0:01:14]} 38. Qxg5 {[%emt 0:01:27]} f6 {[%emt 0:00:24]} 39. exf6 {[%emt 0:01:23]} Nxf6 {[%emt 0:00:25]} 40. Bxc5 {[%emt 0:04:25]} Rxc5 {[%emt 0:07:35]} 41. e5 {[%emt 0:19:22]} Rxd2 {[%emt 0:00:23]} 42. Qxd2 {[%emt 0:02:32]} Nh7 {[%emt 0:26:54]} 43. Bxb7 {[%emt 0:08:04]} Qxb7 {[%emt 0:00:10]} 44. Qd8+ {[%emt 0:01:41]} Nf8 {[%emt 0:00:32]} 45. fxe6 {[%emt 0:00:48]} Qf3 {[%emt 0:04:39]} 46. Ne4 {[%emt 0:01:38]} Rxe5 {[%emt 0:12:10]} 47. e7 {[%emt 0:00:47]} Qf7 {[%emt 0:01:04]} 48. exf8=Q+ {[%emt 0:01:24]} Qxf8 {[%emt 0:00:02]} 49. Qxf8+ {[%emt 0:00:39]} Kxf8 {[%emt 0:00:02]} 50. Kf2 {[%emt 0:00:32]} Rd5 {[%emt 0:00:14]} 51. Re3 {[%emt 0:01:27]} Rd1 {[%emt 0:00:21]} 52. Rc3 {[%emt 0:00:23]} 1-0

[Event "German Bundesliga 2023-24"]
[Site "Germany"]
[Date "2024.02.04"]
[Round "8.15"]
[White "Voege, Tobias"]
[Black "Bacrot, Etienne"]
[Result "1/2-1/2"]
[ECO "E11"]
[WhiteElo "2283"]
[BlackElo "2668"]
[Annotator "TA"]
[PlyCount "93"]
[EventDate "2023.10.20"]
[EventType "team-tourn"]
[EventCountry "GER"]
[SourceTitle "playchess.com"]
[Source "ChessBase"]
[SourceQuality "1"]
[TimeControl "40/6000+30:3000+30"]

{[%evp 10,93,36,12,14,7,10,-15,-18,-15,-28,-23,-27,-41,-42,-47,-38,-56,-36,-35,-48,-33,-18,-31,-31,-41,-40,-39,-46,-72,-32,-57,-41,-35,-35,-61,-46,-77,-43,-33,-40,-45,-40,-59,-42,-56,-32,-46,-37,-56,-51,-79,-99,-100,-102,-401,-142,-136,-120,-129,-33,-136,-135,-229,-227,-217,-126,-126,0,-7,-1,-9,0,-21,0,0,0,-3,0,0,0,0,0,0,0,0]} 1. d4 {[%emt 0:00:03]} Nf6 {[%emt 0:05:47]} 2. c4 {[%emt 0:00:13]} e6 {[%emt 0:00:04]} 3. Nf3 {[%emt 0:00:20]} Bb4+ {[%emt 0:00:44]} 4. Bd2 {[%emt 0:01:39]} c5 {[%emt 0:00:09]} 5. e3 {[%emt 0:03:34]} O-O {[%emt 0:04:16]} 6. Bd3 {[%emt 0:03:10]} Bxd2+ {[%emt 0:06:01]} 7. Qxd2 {[%emt 0:02:06]} cxd4 {[%emt 0:00:07]} 8. exd4 {[%emt 0:04:20]} b6 {[%emt 0:01:27]} 9. O-O {[%emt 0:03:04]} Bb7 {[%emt 0:00:14]} 10. Qf4 {[%emt 0:02:25]} d5 {[%emt 0:08:59]} 11. Nbd2 {[%emt 0:08:41]} dxc4 {[%emt 0:06:58]} 12. Nxc4 {[%emt 0:01:08]} Nc6 {[%emt 0:00:07]} 13. a3 {[%emt 0:08:40]} Ne7 {[%emt 0:08:19]} 14. Nce5 {[%emt 0:09:39]} Qd6 {[%emt 0:00:36]} 15. Rad1 {[%emt 0:05:03]} Rad8 {[%emt 0:00:30]} 16. Rfe1 {[%emt 0:10:41]} h6 {[%emt 0:05:16]} 17. Qh4 {[%emt 0:05:24]} Rc8 {[%emt 0:10:50]} 18. h3 {[%emt 0:15:24]} Rc7 {[%emt 0:05:41]} 19. Nh2 {[%emt 0:05:27]} Qd5 {[%emt 0:06:07][%csl Gb7][%cal Rd5g2]} 20. f3 {[%emt 0:02:41]} Rfc8 {[%emt 0:02:34]} 21. Qf4 {[%emt 0:09:24]} Qd8 {[%emt 0:07:29]} 22. Bb1 {[%emt 0:02:24]} Bc6 {[%emt 0:10:32]} (22... Ned5 {simplifies} 23. Qh4 Ne8 24. Qxd8 Rxd8 25. Nf1 Nd6) 23. Rc1 {[%emt 0:03:17]} Bb5 {[%emt 0:03:40]} 24. Rxc7 {[%emt 0:00:28]} Rxc7 {[%emt 0:00:13]} 25. Nhg4 {[%emt 0:01:20]} Ned5 {[%emt 0:00:08]} 26. Qg3 {[%emt 0:00:52]} Nxg4 {[%emt 0:03:24]} 27. Nxg4 {[%emt 0:00:04]} Qg5 {[%emt 0:09:15]} 28. Be4 {[%emt 0:00:10] And now Bxd5 would win.} Qf4 {[%emt 0:01:54]} 29. Qf2 {[%emt 0:01:22]} Rc1 {[%emt 0:01:48]} 30. Rxc1 {[%emt 0:01:10]} Qxc1+ {[%emt 0:00:01]} 31. Kh2 {[%emt 0:00:08]} Nf4 {[%emt 0:01:06] White must now prevent ...f5.} 32. Qh4 $2 {[%emt 0:00:56][%mdl 8192]} (32. Qe3 $17 Qxe3 (32... Qxb2 $2 33. Qxf4 f5 34. Qe5 $18) 33. Nxe3) 32... Qc7 $2 {[%emt 0:00:41]} (32... Qxb2 33. Qd8+) (32... f5 $1 $19 {is more deadly.} 33. Qd8+ Kh7) 33. Qg3 $17 {[%emt 0:00:47]} Kf8 {[%emt 0:00:23]} 34. Ne5 {[%emt 0:00:43]} g5 {[%emt 0:00:11]} ({Black should play} 34... Qc1 $17 {[%cal Og7g5] Strongly threatening ...g5!} 35. Qf2 g6) 35. h4 $15 {[%emt 0:00:31] [#]} Qd8 {[%emt 0:00:34][%csl LRd4,LRh4]} 36. hxg5 {[%emt 0:00:13]} (36. Bc6 $17 Ba6 (36... gxh4 37. Qxf4 f6 38. Qxh6+ Ke7 39. Qg7+ Kd6 40. Bxb5 a6 41. Nf7+ Kd5 42. Nxd8) 37. Qf2) 36... hxg5 $19 {[%emt 0:00:31][%cal Of8g7]} 37. Bc6 {[%emt 0:00:28]} Bxc6 {[%emt 0:01:25]} (37... Qxd4 $2 {loses.} 38. Qxg5 (38. Nd7+ Kg7 $18) 38... Bxc6 39. Qf6 $18 (39. Nxc6 Qd6 $11)) (37... Ba6 $19 {[%cal Of8g7] Hoping for ...Kg7!} 38. Ng4 Qxd4) 38. Nxc6 {[%emt 0:00:03][%mdl 4096] Endgame. [#] KQN-KQN} Qf6 {[%emt 0:00:05]} ({Black should try} 38... Qd5 $1 $17 {[%cal Rd5c6]} 39. Nxa7 Qf5) 39. Qe1 $1 $11 {[%emt 0:00:30] The position is equal.} a5 {[%emt 0:00:50]} 40. Ne5 $36 {[%emt 0:00:40][%mdl 2048] Threatens to win with Nd7+. White has good play.} Kg7 {[%emt 0:00:26]} 41. Qe4 {[%emt 0:04:25]} Nd5 {[%emt 0:07:51]} 42. g3 {[%emt 0:04:51]} Qd8 {[%emt 0:03:01]} 43. Ng4 {[%emt 0:08:03]} Qc8 {[%emt 0:06:17]} 44. Ne3 {[%emt 0:03:07]} Nxe3 {[%emt 0:02:09]} 45. Qxe3 {[%emt 0:00:20]} Qc2+ {[%emt 0:00:17]} 46. Kh3 {[%emt 0:00:16]} Kg6 {[%emt 0:01:11]} 47. b3 {[%emt 0:06:50] Whites escaped into a draw.   Weighted Error Value: White=0.21 (precise) /Black=0.27 (precise) .  Loses game:     	White=1     	---        Missed win:     	---       	Black=1      Mistake:       	White=1     	Black=3      Inaccurate:     	White=4     	Black=2      OK:         	White=10    	Black=13     Best:        	White=4     	Black=1      Strong:       	White=1     	---} 1/2-1/2